bitfinex/quotes_ETHUSD_20250219
["timestamp","ask_amount","ask_price","bid_price","bid_amount"]
[1739955648256,3.68667,2712.5,2711.9,7.37475]
[1739955648455,3.68667,2712.5,2712.0,3.68721]
[1739955649078,3.68667,2712.5,2711.9,7.37473]
[1739955649290,3.68667,2712.5,2712.0,3.68731]
[1739955649801,3.68667,2712.5,2712.0,3.6872]
[1739955650803,3.74869,2712.6,2712.2,3.68699]
[1739955650999,3.8006,2712.7,2712.3,3.6869]
[1739955651554,3.8006,2712.7,2712.3,3.68682]
[1739955652102,3.8006,2712.7,2711.8,3.68752]
[1739955652300,3.8006,2712.7,2712.3,3.68689]
[1739955652535,3.8006,2712.7,2712.1,3.68717]
[1739955653060,3.8006,2712.7,2712.2,3.68704]
[1739955653261,3.8006,2712.7,2712.3,3.68689]
[1739955654623,0.8006,2712.7,2712.3,7.3737]
[1739955654821,0.8006,2712.7,2712.3,3.68681]
[1739955656512,3.6865,2712.6,2712.0,3.68731]
[1739955656722,3.68663,2712.5,2712.0,3.68731]
[1739955656906,3.6865,2712.6,2712.0,3.68731]
[1739955657819,1.549272,2712.7,2712.3,3.68679]
[1739955658120,1.549272,2712.7,2712.3,7.37361]
[1739955658304,0.8006,2712.7,2712.3,7.37361]
[1739955658505,0.8006,2712.7,2712.3,3.68679]
[1739955658693,0.8006,2712.7,2712.4,3.68669]
[1739955659818,3.0,2712.8,2712.4,3.68666]
[1739955660191,3.68631,2712.8,2712.3,0.8286]
[1739955660396,6.68616,2712.9,2712.4,3.68675]
[1739955660593,4.117871,2712.9,2712.4,3.68675]
[1739955660797,3.8065,2713.0,2712.4,3.68671]
[1739955660997,3.8042879,2713.0,2712.6,3.68637]
[1739955661482,3.8042879,2713.0,2712.4,3.68667]
[1739955661677,3.8042879,2713.0,2712.6,7.37292]
[1739955661896,3.8042879,2713.0,2712.6,3.68646]
[1739955663493,3.8042879,2713.0,2712.6,7.37288]
[1739955663708,3.8042879,2713.0,2712.6,3.68642]
[1739955664226,0.8042879,2713.0,2712.6,3.68642]
[1739955664451,0.8042879,2713.0,2712.6,3.6864]
[1739955664730,0.8042879,2713.0,2712.6,3.68642]
[1739955665923,3.0,2713.1,2712.7,3.68629]
[1739955667312,3.0,2713.1,2712.6,3.68642]
[1739955667635,0.7684,2713.2,2712.8,3.68618]
[1739955668127,0.7684,2713.2,2712.8,3.68622]
[1739955668325,0.7684,2713.2,2712.5,6.12089828]
[1739955668489,0.7579,2713.4,2713.0,3.68594]
[1739955669188,3.0,2713.3,2713.0,3.68594]
[1739955669388,3.0,2713.3,2713.0,3.68589]
[1739955669811,3.0,2713.3,2713.1,3.68576]
[1739955670131,3.0,2713.3,2713.1,3.68574]
[1739955671024,0.7579,2713.4,2713.1,3.68574]
[1739955671928,0.7579,2713.4,2713.0,3.68588]
[1739955671929,0.7658,2713.6,2713.2,3.68567]
[1739955672130,0.7658,2713.6,2712.9,5.36]
[1739955672301,0.7658,2713.9,2713.4,3.68534]
[1739955672502,0.7658,2713.9,2713.4,7.37068]
[1739955672503,4.4506,2713.9,2713.4,7.37068]
[1739955672828,4.45376,2714.2,2713.7,3.68497]
[1739955673033,4.45376,2714.2,2713.5,9.04527]
[1739955673392,8.13821,2714.2,2713.6,3.68513]
[1739955673594,8.952021,2714.2,2713.6,3.68513]
[1739955673796,3.68459,2714.1,2713.5,9.04527]
[1739955674105,3.68459,2714.1,2713.5,9.04519]
[1739955674329,3.68459,2714.1,2713.6,3.68512]
[1739955674944,5.267581,2714.2,2713.6,3.68513]
[1739955675087,0.7694,2714.2,2713.8,3.68479]
[1739955675288,0.7694,2714.2,2713.7,3.72183696]
[1739955675528,0.7694,2714.2,2713.7,3.68499]
[1739955675735,4.48759,2714.5,2713.9,3.68472]
[1739955675917,4.936349,2714.5,2713.9,3.68472]
[1739955676084,4.48759,2714.5,2714.0,3.68459]
[1739955676312,4.48759,2714.5,2713.9,7.36937]
[1739955676607,4.48759,2714.5,2713.9,3.68465]
[1739955676810,3.68416,2714.4,2713.8,9.81224]
[1739955677043,4.48759,2714.5,2713.9,3.68465]
[1739955677269,0.8036,2714.5,2713.9,5.034385]
[1739955677563,4.48752,2714.5,2714.0,3.68458]
[1739955677724,0.8036,2714.5,2713.9,5.034355]
[1739955677915,0.8036,2714.5,2714.1,3.68445]
[1739955679371,3.0,2714.6,2714.3,3.68413]
[1739955679660,3.0,2714.6,2714.2,3.68427]
[1739955679824,0.8219,2714.7,2714.3,3.68407]
[1739955680213,0.8219,2714.7,2714.3,7.36817]
[1739955680415,0.8219,2714.7,2713.9,1.349705]
[1739955680416,0.8219,2714.7,2714.4,3.68397]
[1739955680618,0.7552,2715.0,2714.5,3.68385]
[1739955680845,0.7552,2715.0,2714.5,4.420632]
[1739955681041,4.43844,2715.0,2714.5,4.420632]
[1739955681248,3.68351,2714.8,2714.1,4.46508]
[1739955681464,3.68351,2714.8,2714.2,3.68421]
[1739955681644,3.68351,2714.8,2714.3,3.68416]
[1739955681956,3.68351,2714.8,2714.1,4.46508]
[1739955681957,1.88,2714.5,2714.1,4.46508]
[1739955682530,1.88,2714.5,2714.3,3.68406]
[1739955682733,1.88,2714.5,2714.4,4.052456]
[1739955683146,4.43847,2715.0,2714.4,4.052456]
[1739955683350,3.6834,2714.9,2714.4,4.052456]
[1739955683658,0.7552,2715.0,2714.4,4.052376]
[1739955683659,4.43845,2715.0,2714.4,4.052376]
[1739955683867,4.43845,2715.0,2714.4,4.052366]
[1739955684038,4.43845,2715.0,2714.4,7.736346]
[1739955684366,4.43845,2715.0,2714.5,3.6839]
[1739955684660,4.43845,2715.0,2714.5,4.4575346]
[1739955684983,8.12182,2715.0,2714.5,0.7736346]
[1739955685163,4.43845,2715.0,2714.5,4.4575346]
[1739955685365,4.43845,2715.0,2714.6,3.68376]
[1739955685366,0.7552,2715.0,2714.6,3.68376]
[1739955685547,1.88,2714.7,2714.6,4.53474506]
[1739955686141,1.88,2714.7,2714.6,0.85098506]
[1739955686323,1.88,2714.7,2714.4,0.368406]
[1739955686751,1.88,2714.7,2714.4,4.052446]
[1739955687150,1.88,2714.7,2714.5,3.6838]
[1739955689227,1.88,2714.7,2714.4,4.052366]
[1739955690531,1.88,2714.7,2714.4,4.052356]
[1739955690731,1.88,2714.7,2714.6,3.68378]
[1739955691689,1.88,2714.7,2714.6,4.44328]
[1739955692391,0.7878,2715.2,2714.7,3.68363]
[1739955692565,0.7878,2715.2,2714.8,3.68343]
[1739955692947,0.7878,2715.2,2714.7,3.68363]
[1739955693143,0.7878,2715.2,2714.7,5.07284856]
[1739955693375,4.47078,2715.2,2714.7,5.07284856]
[1739955693944,4.47078,2715.2,2714.7,1.38921856]
[1739955696064,3.6831,2715.1,2714.7,1.38921856]
[1739955696389,8.15386,2715.2,2714.7,1.38921856]
[1739955696692,3.68334,2715.0,2714.5,5.7652356]
[1739955697098,8.15395,2715.2,2714.6,3.68377]
[1739955697395,3.68311,2715.1,2714.6,3.68377]
[1739955697578,3.6831,2715.1,2714.5,9.4491456]
[1739955697953,3.6831,2715.1,2714.6,3.68377]
[1739955698153,3.6831,2715.1,2714.7,0.94490056]
[1739955698754,0.7878,2715.2,2714.7,0.94490056]
[1739955699392,4.47079,2715.2,2714.7,0.94490056]
[1739955699595,4.47079,2715.2,2714.8,0.7563]
[1739955700154,3.68317,2715.1,2714.7,0.94490056]
[1739955700354,4.47079,2715.2,2714.7,0.94490056]
[1739955701184,4.47079,2715.2,2714.8,0.54102306]
[1739955702558,3.68313,2715.1,2714.8,0.54102306]
[1739955702758,4.47079,2715.2,2714.8,0.54102306]
[1739955702957,3.68316,2715.1,2714.7,0.94490056]
[1739955703998,7.4708,2715.2,2714.7,4.62854056]
[1739955704152,3.7878,2715.2,2714.7,4.62854056]
[1739955704502,7.47083,2715.2,2714.7,4.62854056]
[1739955705703,3.0,2715.2,2714.7,0.94490056]
[1739955705993,3.6831,2715.1,2714.7,0.94490056]
[1739955706317,3.6831,2715.1,2714.8,0.54102406]
[1739955707156,3.0,2715.2,2714.8,0.54102406]
[1739955707364,3.0,2715.2,2714.7,4.66530306]
[1739955707694,3.0,2715.2,2714.8,3.68343]
[1739955708570,3.68284,2715.3,2714.8,3.68343]
[1739955709608,3.683,2715.2,2714.7,0.94490056]
[1739955709755,3.68303,2715.2,2714.7,0.94490056]
[1739955709960,3.68284,2715.3,2714.7,4.62853056]
[1739955710957,3.68284,2715.3,2714.7,8.31211056]
[1739955711156,3.68284,2715.3,2714.7,4.62848056]
[1739955711466,3.68284,2715.3,2714.8,4.22450806]
[1739955711615,3.68307,2715.2,2714.8,0.54100806]
[1739955712415,3.68286,2715.3,2714.8,0.54100806]
[1739955712926,3.68298,2715.2,2714.8,0.54100806]
[1739955713329,4.46989,2715.4,2714.8,4.22450806]
[1739955713542,3.68285,2715.3,2714.8,4.22450806]
[1739955713859,3.68285,2715.3,2714.8,0.54100806]
[1739955714365,3.68303,2715.2,2714.7,0.94490056]
[1739955714722,0.7871,2715.4,2714.7,0.94490056]
[1739955714922,3.68317,2715.1,2714.6,0.7816]
[1739955715760,3.68317,2715.1,2714.6,4.46537]
[1739955716161,3.68317,2715.1,2714.6,0.7816]
[1739955716471,3.68321,2715.1,2714.6,0.7816]
[1739955716766,3.68319,2715.1,2714.6,0.7816]
[1739955717069,3.68319,2715.1,2714.6,4.46537]
[1739955717222,3.68291,2715.3,2714.6,5.816318]
[1739955717424,0.7871,2715.4,2714.7,3.68364]
[1739955717620,4.46986,2715.4,2714.8,3.68342]
[1739955717864,4.46986,2715.4,2714.8,4.6333808]
[1739955718340,7.46986,2715.4,2714.8,4.6333808]
[1739955718735,3.0,2715.4,2714.9,3.6833]
[1739955719034,3.68186,2716.1,2715.4,3.68261]
[1739955719256,3.68226,2715.8,2715.2,3.68288]
[1739955719455,3.68235,2715.7,2715.0,4.45731]
[1739955719623,3.6821,2715.9,2714.9,5.36]
[1739955719831,3.68188,2716.0,2715.4,3.68262]
[1739955720440,3.68181,2716.1,2715.4,3.68262]
[1739955720763,3.68183,2716.1,2715.4,3.68262]
[1739955721183,3.0,2716.0,2715.4,3.68261]
[1739955721349,3.0,2716.0,2715.5,3.68253]
[1739955722683,5.38,2716.5,2715.8,4.47397]
[1739955722983,3.0,2716.2,2715.8,0.7919]
[1739955723335,3.0,2715.8,2715.5,6.1519]
[1739955723535,3.0,2715.8,2715.5,5.36]
[1739955724177,4.4579,2716.1,2715.5,9.04254]
[1739955724341,3.0,2716.0,2715.5,10.394264]
[1739955724541,3.0,2716.0,2715.7,3.68228]
[1739955724843,0.7761,2716.1,2715.7,3.68228]
[1739955725983,4.4579,2716.1,2715.5,10.394204]
[1739955726141,4.4579,2716.1,2715.6,0.61961978]
[1739955726142,0.7761,2716.1,2715.6,0.61961978]
[1739955726343,0.7761,2716.1,2715.6,4.30202978]
[1739955727236,3.68114,2716.6,2715.7,0.7719]
[1739955727444,3.68161,2716.2,2715.7,0.7719]
[1739955727644,3.68182,2716.1,2715.7,1.81528698]
[1739955728268,4.44271,2716.2,2715.7,1.81528698]
[1739955728437,3.68175,2716.1,2715.7,1.81528698]
[1739955728873,4.44271,2716.2,2715.7,5.49754698]
[1739955729498,8.1244,2716.2,2715.7,1.81528698]
[1739955729700,4.44271,2716.2,2715.7,1.81528698]
[1739955729866,4.44271,2716.2,2715.7,5.49752698]
[1739955730205,4.44271,2716.2,2715.8,0.9179917]
[1739955731202,3.68141,2716.4,2715.8,0.9179917]
[1739955731564,3.68149,2716.3,2715.8,0.9179917]
[1739955731761,3.68141,2716.4,2715.8,0.9179917]
[1739955732260,0.7603,2716.5,2715.8,0.9179917]
[1739955732507,3.68151,2716.3,2715.8,0.9179917]
[1739955732688,3.0,2716.4,2715.8,0.9179917]
[1739955732897,3.68175,2716.1,2715.5,9.81321]
[1739955733060,3.68175,2716.1,2715.5,6.1307]
[1739955733264,3.68156,2716.3,2715.6,3.68242]
[1739955733618,7.36316,2716.3,2715.6,3.68242]
[1739955733815,7.36316,2716.3,2715.7,0.981312]
[1739955734107,3.68156,2716.3,2715.7,4.663552]
[1739955734961,3.0,2716.4,2715.9,3.682]
[1739955735159,3.0,2716.4,2715.8,0.7707]
[1739955735403,3.68155,2716.3,2715.8,0.7707]
[1739955736424,6.68141,2716.4,2715.8,0.7707]
[1739955736624,3.68152,2716.3,2715.8,0.7707]
[1739955737220,3.68157,2716.3,2715.8,0.7707]
[1739955737397,6.68141,2716.4,2715.8,0.7707]
[1739955737812,7.36334,2716.2,2715.8,0.7707]
[1739955738123,7.36334,2716.2,2715.7,0.981312]
[1739955738124,3.68161,2716.2,2715.7,0.981312]
[1739955738330,3.68161,2716.2,2715.6,4.45312]
[1739955739389,3.68183,2716.1,2715.6,0.7707]
[1739955739932,3.68183,2716.1,2715.6,4.45312]
[1739955740721,3.68151,2716.3,2715.6,4.45312]
[1739955740911,3.68162,2716.2,2715.6,4.45312]
[1739955741111,3.68151,2716.3,2715.7,1.349561]
[1739955741320,7.3631,2716.3,2715.7,1.349561]
[1739955741612,3.68151,2716.3,2715.7,1.349561]
[1739955741789,3.68164,2716.2,2715.7,1.349561]
[1739955742431,3.0,2716.4,2715.7,5.031841]
[1739955742604,6.6814,2716.4,2715.9,0.7907]
[1739955743084,3.0,2716.5,2716.0,3.68188]
[1739955743482,6.68121,2716.5,2716.0,3.68188]
[1739955744089,6.68121,2716.5,2715.9,6.1507]
[1739955744288,3.0,2716.5,2715.9,6.1507]
[1739955744515,3.0,2716.5,2716.0,4.35487541]
[1739955744703,3.68114,2716.6,2716.1,0.8051]
[1739955746027,3.68093,2716.7,2716.1,4.48677]
[1739955746229,3.68089,2716.8,2716.2,3.68159]
[1739955746429,3.68089,2716.8,2716.3,4.130109]
[1739955746583,3.68089,2716.8,2716.3,0.448669]
[1739955746989,7.4354,2716.9,2716.3,4.130039]
[1739955747189,3.68087,2716.8,2716.3,0.448669]
[1739955747728,3.68062,2717.0,2716.3,0.448669]
[1739955747729,3.68062,2717.0,2716.4,3.68131]
[1739955747933,3.68042,2717.1,2716.5,1.60185297]
[1739955748231,0.8303,2717.3,2716.5,10.6062339]
[1739955748437,3.68004,2717.4,2716.6,0.8196]
[1739955748592,3.0,2717.3,2716.6,0.8196]
[1739955748786,3.0,2717.3,2716.7,1.06419339]
[1739955749504,6.68013,2717.3,2716.7,4.74502339]
[1739955749700,3.0,2717.3,2716.7,4.74502339]
[1739955749905,3.0,2717.3,2716.8,3.68079]
[1739955750090,6.68013,2717.3,2716.7,4.74502339]
[1739955750432,3.68004,2717.4,2716.9,0.7756]
[1739955751132,3.68012,2717.3,2716.9,0.7756]
[1739955752441,0.8152,2717.6,2716.9,4.45617]
[1739955752442,6.67985,2717.5,2716.9,4.45617]
[1739955753131,3.0,2717.5,2716.9,0.7756]
[1739955753308,3.67999,2717.4,2716.9,0.7756]
[1739955753636,3.67999,2717.4,2717.0,0.50127823]
[1739955753929,3.67986,2717.5,2717.0,0.50127823]
[1739955754333,3.68014,2717.3,2717.0,0.50127823]
[1739955754939,3.68014,2717.3,2716.9,0.7756]
[1739955756289,3.67994,2717.5,2716.9,0.7756]
[1739955756493,3.68005,2717.4,2716.9,0.7756]
[1739955756693,3.68013,2717.3,2716.9,0.7756]
[1739955757629,3.68012,2717.3,2716.9,0.7756]
[1739955757936,3.68005,2717.4,2716.9,1.81289023]
[1739955758427,3.68005,2717.4,2716.9,5.49352023]
[1739955758633,3.68013,2717.3,2716.9,1.81289023]
[1739955759205,3.68005,2717.4,2716.9,5.49353023]
[1739955759821,3.67978,2717.6,2716.9,5.49346023]
[1739955760017,3.67978,2717.6,2717.0,0.64179475]
[1739955760249,7.35958,2717.6,2717.0,0.60499226]
[1739955760547,3.6799,2717.5,2717.0,0.60499226]
[1739955761043,3.67978,2717.6,2717.0,4.28545226]
[1739955761218,3.67985,2717.5,2717.0,4.28545226]
[1739955761414,3.67985,2717.5,2717.1,0.97789125]
[1739955761750,0.7882,2717.9,2717.2,0.7823]
[1739955761904,3.67975,2717.6,2717.2,0.7823]
[1739955762104,3.68,2717.4,2717.2,0.7823]
[1739955762512,3.67985,2717.5,2717.2,0.7823]
[1739955762715,3.67999,2717.4,2717.2,0.7823]
[1739955763252,1.88,2717.3,2717.0,6.73559226]
[1739955763408,1.88,2717.3,2717.1,0.67355923]
[1739955764808,3.67992,2717.5,2717.1,0.67355923]
[1739955765547,3.67956,2717.8,2717.1,4.35393923]
[1739955765748,3.67956,2717.8,2717.3,3.6801]
[1739955765906,1.88,2717.4,2717.2,0.8027]
[1739955766105,1.88,2717.4,2717.2,4.48293]
[1739955766336,3.67965,2717.7,2717.2,4.48293]
[1739955766560,7.35908,2717.8,2717.2,4.48293]
[1739955766761,3.67953,2717.8,2717.2,4.48293]
[1739955766964,3.67953,2717.8,2717.3,0.88367792]
[1739955767160,3.6798,2717.6,2717.3,0.88367792]
[1739955768575,3.6801,2717.4,2717.2,0.8027]
[1739955769079,3.67985,2717.5,2717.2,0.8027]
[1739955769580,3.0,2717.8,2717.2,0.8027]
[1739955769734,3.67995,2717.5,2717.2,0.8027]
[1739955770546,3.68006,2717.4,2717.2,0.8027]
[1739955771274,3.67989,2717.5,2717.2,0.8027]
[1739955771950,3.67981,2717.6,2717.2,1.787021]
[1739955772144,7.35961,2717.6,2717.2,1.787021]
[1739955772468,3.67986,2717.5,2717.2,1.787021]
[1739955774745,3.6798,2717.6,2717.2,1.787021]
[1739955774951,3.67986,2717.5,2717.2,1.787021]
[1739955776277,3.6798,2717.6,2717.2,1.787021]
[1739955776639,7.35963,2717.6,2717.2,1.787021]
[1739955777061,3.6798,2717.6,2717.2,1.787021]
[1739955777479,3.6798,2717.6,2717.2,0.8027]
[1739955777480,3.67994,2717.5,2717.2,0.8027]
[1739955778167,3.68,2717.4,2717.2,0.8027]
[1739955779063,3.67979,2717.6,2717.2,0.8027]
[1739955779374,3.67954,2717.8,2717.3,0.03679784]
[1739955779576,3.67954,2717.8,2717.2,4.48295]
[1739955779783,3.67971,2717.6,2717.2,0.8027]
[1739955780145,3.67971,2717.6,2717.3,0.03679769]
[1739955780367,3.67972,2717.6,2717.3,0.03679769]
[1739955780573,3.67972,2717.6,2717.2,1.787008]
[1739955780884,7.35952,2717.6,2717.2,1.787008]
[1739955781181,3.67986,2717.5,2717.2,0.8027]
[1739955781375,3.67965,2717.7,2717.2,0.8027]
[1739955782141,3.67965,2717.7,2717.2,4.48293]
[1739955782359,3.67965,2717.7,2717.2,9.84293]
[1739955782770,3.67936,2717.9,2717.3,3.68006]
[1739955782771,3.67945,2717.8,2717.3,3.68006]
[1739955782986,3.67936,2717.9,2717.4,1.352299]
[1739955783186,3.67936,2717.9,2717.5,0.7557]
[1739955783388,1.88,2717.6,2717.5,0.7557]
[1739955783882,3.67962,2717.7,2717.5,0.7557]
[1739955784386,3.67949,2717.8,2717.5,0.7557]
[1739955785488,3.67965,2717.7,2717.5,0.7557]
[1739955786863,3.67949,2717.8,2717.5,0.9664999]
[1739955787064,3.67918,2718.0,2717.5,0.9664999]
[1739955787259,7.35846,2718.0,2717.5,0.9664999]
[1739955787465,7.35845,2718.0,2717.5,0.9664999]
[1739955787663,3.67936,2717.9,2717.5,0.9664999]
[1739955787978,3.67936,2717.9,2717.6,0.46463799]
[1739955788293,1.88,2717.7,2717.6,0.46463799]
[1739955788495,3.67918,2718.0,2717.6,0.46463799]
[1739955788650,3.67938,2717.9,2717.6,0.46463799]
[1739955789144,3.67938,2717.9,2717.7,0.786]
[1739955789349,1.88,2717.8,2717.7,0.786]
[1739955792056,1.88,2717.8,2717.5,5.36]
[1739955792456,3.67958,2717.7,2717.5,5.36]
[1739955792657,3.67971,2717.6,2717.5,5.36]
[1739955793352,3.67958,2717.7,2717.5,5.36]
[1739955793650,7.35927,2717.7,2717.5,5.36]
[1739955793849,3.67971,2717.6,2717.5,5.36]
[1739955794297,3.67958,2717.7,2717.4,0.832]
[1739955794591,7.35926,2717.7,2717.4,0.832]
[1739955794785,3.67958,2717.7,2717.4,0.832]
[1739955794987,3.67975,2717.6,2717.4,0.832]
[1739955795294,3.67975,2717.6,2717.4,1.4512]
[1739955796166,3.67966,2717.7,2717.4,1.4512]
[1739955797576,7.35932,2717.7,2717.4,1.4512]
[1739955797775,7.35933,2717.7,2717.4,1.4512]
[1739955798093,3.67966,2717.7,2717.4,1.4512]
[1739955798290,7.35933,2717.7,2717.4,1.4512]
[1739955798587,3.67966,2717.7,2717.4,1.4512]
[1739955798799,3.67971,2717.6,2717.4,1.4512]
[1739955798968,3.67958,2717.7,2717.4,1.4512]
[1739955799150,3.67972,2717.6,2717.4,1.4512]
[1739955800399,3.67972,2717.6,2717.4,0.832]
[1739955801390,3.67958,2717.7,2717.4,0.832]
[1739955801599,4.89226407,2717.8,2717.4,0.832]
[1739955802097,3.67965,2717.7,2717.4,0.832]
[1739955802298,8.57178407,2717.8,2717.4,0.832]
[1739955802470,3.67961,2717.7,2717.4,0.832]
[1739955802673,3.67961,2717.7,2717.4,1.4512]
[1739955803405,1.21272407,2717.8,2717.4,5.13116]
[1739955803572,4.89195407,2718.0,2717.5,3.6798]
[1739955803899,3.67949,2717.8,2717.4,1.4512]
[1739955804985,3.67932,2717.9,2717.4,5.13117]
[1739955805220,3.67932,2717.9,2717.5,0.513117]
[1739955805922,4.89218407,2717.8,2717.5,0.513117]
[1739955806222,3.67966,2717.7,2717.4,1.4512]
[1739955806425,8.57171407,2717.8,2717.4,1.4512]
[1739955806720,3.67959,2717.7,2717.4,1.4512]
[1739955807016,4.89218407,2717.8,2717.4,1.4512]
[1739955807412,4.89218407,2717.8,2717.4,5.13118]
[1739955807753,4.89195407,2718.0,2717.5,0.513118]
[1739955807903,8.57122407,2718.0,2717.5,0.513118]
[1739955808107,3.67937,2717.9,2717.5,0.513118]
[1739955810889,6.67912,2718.1,2717.6,3.67971]
[1739955811518,6.67912,2718.1,2717.7,0.7886]
[1739955811926,4.89163407,2718.2,2717.7,1.8227428]
[1739955812837,3.67891,2718.2,2717.7,1.8227428]
[1739955813033,3.67891,2718.2,2717.7,5.5023128]
[1739955813418,7.35792,2718.2,2717.7,5.5022128]
[1739955813597,7.3579,2718.2,2717.7,5.5022128]
[1739955813797,3.67891,2718.2,2717.8,0.55022128]
[1739955815034,3.67891,2718.2,2717.8,5.91022128]
[1739955815599,7.49962,2718.4,2717.8,5.91022128]
[1739955815900,3.67877,2718.3,2717.8,9.58966128]
[1739955816500,10.36246,2718.4,2717.8,9.58966128]
[1739955816822,10.36246,2718.4,2717.9,1.14124041]
[1739955817323,3.67876,2718.3,2717.9,1.14124041]
[1739955817525,6.68372,2718.4,2718.0,0.7737]
[1739955817699,1.88,2718.1,2718.0,0.7737]
[1739955819105,3.68363,2718.4,2718.0,0.7737]
[1739955819450,0.005,2718.4,2718.1,4.23836404]
[1739955819627,1.88,2718.2,2718.1,5.00276404]
[1739955820542,1.88,2718.2,2718.1,1.32382404]
[1739955820738,3.68365,2718.4,2718.1,1.32382404]
[1739955821046,0.005,2718.4,2718.1,1.32382404]
[1739955821338,0.005,2718.4,2718.2,0.5002974]
[1739955822042,0.005,2718.4,2718.2,5.8602974]
[1739955822904,0.005,2718.4,2718.3,4.50654272]
[1739955823106,0.005,2718.4,2718.3,4.46976]
[1739955823544,0.005,2718.4,2718.3,0.791]
[1739955823704,0.005,2718.4,2718.3,1.87994914]
[1739955829564,0.005,2718.4,2718.3,1.08894914]
[1739955830744,0.005,2718.4,2718.3,4.76770914]
[1739955831161,0.005,2718.4,2718.3,1.08894914]
[1739955831671,0.005,2718.4,2718.3,5.57320914]
[1739955831868,0.005,2718.4,2718.3,1.89444914]
[1739955832978,0.005,2718.4,2718.3,1.08894914]
[1739955833566,0.005,2718.4,2718.3,4.76770914]
[1739955834174,0.005,2718.4,2718.3,1.08894914]
[1739955835365,0.005,2718.4,2718.3,4.76770914]
[1739955836874,0.005,2718.4,2718.3,1.08894914]
[1739955838373,1.2167691,2718.4,2718.2,5.36]
[1739955838533,5.6679891,2718.4,2718.2,5.36]
[1739955838871,5.6679891,2718.4,2718.0,5.36]
[1739955840670,4.45622,2718.4,2718.0,5.36]
[1739955840874,0.7775,2718.4,2718.0,5.36]
[1739955841071,4.45613,2718.4,2718.0,6.263922]
[1739955841648,3.67897,2718.2,2718.0,5.36]
[1739955841946,0.8127,2718.3,2718.0,5.36]
[1739955842777,0.8127,2718.3,2718.0,9.03915]
[1739955842951,0.005,2718.4,2718.0,9.80225]
[1739955843282,0.005,2718.4,2718.1,3.67894]
[1739955843460,0.005,2718.4,2718.2,5.026949]
[1739955843848,0.005,2718.4,2718.2,1.348119]
[1739955845049,0.005,2718.4,2718.1,0.22642799]
[1739955845250,0.005,2718.4,2718.0,6.1231]
[1739955845572,0.005,2718.4,2718.0,5.36]
[1739955846083,0.005,2718.4,2718.0,9.03915]
[1739955848081,3.68372,2718.4,2718.0,5.36]
[1739955848264,3.68372,2718.4,2718.1,0.903921]
[1739955848987,7.36244,2718.4,2718.1,1.13061575]
[1739955849192,0.005,2718.4,2718.1,1.13061575]
[1739955850299,0.005,2718.4,2718.1,0.903921]
[1739955851193,0.005,2718.4,2718.1,8.261821]
[1739955851382,0.005,2718.4,2718.2,1.3621821]
[1739955852261,0.005,2718.4,2718.3,0.22674185]
[1739955852593,3.68363,2718.4,2718.3,0.22674185]
[1739955852747,6.87705969,2718.4,2718.3,0.22674185]
[1739955853379,8.75705969,2718.4,2718.3,0.22674185]
[1739955854099,8.75705969,2718.4,2718.0,5.36]
[1739955855472,6.33293,2718.4,2718.0,6.263936]
[1739955855673,2.6543,2718.4,2718.0,6.263936]
[1739955855878,6.33294,2718.4,2718.0,6.263936]
[1739955856609,2.6543,2718.4,2718.0,0.903936]
[1739955856910,3.67877,2718.3,2717.8,5.36]
[1739955858015,3.67877,2718.3,2717.8,9.03942]
[1739955858224,3.67876,2718.3,2717.8,5.36]
[1739955858381,3.67876,2718.3,2717.9,0.22667826]
[1739955859974,3.67876,2718.3,2718.0,0.22667826]
[1739955860614,7.35763,2718.3,2718.0,0.22667826]
[1739955860800,2.6543,2718.4,2718.0,0.22667826]
[1739955861208,2.6543,2718.4,2717.8,9.0394]
[1739955861209,3.67885,2718.3,2717.8,9.0394]
[1739955861381,3.67885,2718.3,2717.8,10.393757]
[1739955862298,3.67885,2718.3,2717.9,0.2265606]
[1739955862682,4.89104562,2718.3,2717.9,0.2265606]
[1739955864317,1.21219562,2718.3,2717.9,3.9057906]
[1739955864524,1.21219562,2718.3,2718.0,0.2265606]
[1739955865494,4.89098562,2718.3,2718.0,0.2265606]
[1739955865694,4.89098562,2718.3,2717.8,10.393727]
[1739955865911,1.21219562,2718.3,2717.8,10.393717]
[1739955866437,4.89105562,2718.3,2717.8,10.393717]
[1739955866656,5.68692562,2717.9,2717.4,6.1342]
[1739955866842,1.21219562,2717.6,2717.4,5.36]
[1739955867042,1.21219562,2717.6,2717.2,5.36]
[1739955867203,1.21219562,2717.4,2717.2,5.36]
[1739955868331,3.68012,2717.3,2717.2,5.36]
[1739955868532,1.21219562,2717.4,2716.9,0.7602]
[1739955868849,3.68,2717.4,2716.9,4.44076]
[1739955869021,3.68,2717.4,2716.9,5.788927]
[1739955869209,3.68013,2717.3,2716.8,5.36]
[1739955869952,7.36034,2717.3,2716.8,5.36]
[1739955870147,4.45321,2716.8,2716.2,9.79265]
[1739955870321,6.87915371,2717.0,2716.5,3.68119]
[1739955870522,6.87915371,2717.0,2716.4,3.68133]
[1739955870727,6.87915371,2717.0,2716.4,5.02872]
[1739955870928,6.87915371,2717.0,2716.4,1.34739]
[1739955871142,3.68083,2716.8,2716.2,6.1111]
[1739955871445,3.24667371,2716.7,2716.2,5.36]
[1739955871652,3.24667371,2716.7,2716.3,3.68139]
[1739955872054,0.8033,2716.9,2716.4,3.71802164]
[1739955872259,0.8033,2717.1,2716.5,4.80768216]
[1739955872424,0.8033,2717.1,2716.7,3.68091]